[Event "1000 GM Labor Day Super Swiss 2024"]
[Site "San Jose"]
[Date "2024.09.02"]
[Round "6.13"]
[White "Kiewra, Keaton"]
[Black "Montes Orozco, Miguel Angel"]
[Result "0-1"]
[Annotator "RC"]
[ECO "A09"]
[WhiteElo "2287"]
[BlackElo "2155"]
[PlyCount "98"]
[EventDate "2024.08.30"]
[EventType "swiss"]
[EventCountry "USA"]
[SourceTitle "playchess.com"]
[Source "ChessBase"]
[SourceQuality "1"]
[TimeControl "5400+30"]

1. Nf3 {[%emt 0:12:49]} d5 {[%emt 0:00:24]} 2. c4 {[%emt 0:00:06]} d4 {[%emt 0:00:27]} 3. b4 {[%emt 0:00:06]} f6 {[%emt 0:04:46]} 4. d3 {[%emt 0:04:07]} e5 {[%emt 0:01:08]} 5. b5 {[%emt 0:01:42]} Ne7 {[%emt 0:10:45]} 6. Ba3 {[%emt 0:04:23]} a6 {[%emt 0:07:31]} 7. bxa6 {[%emt 0:08:04]} Nxa6 {[%emt 0:05:31]} 8. g3 {[%emt 0:00:33]} Nf5 {[%emt 0:04:25]} 9. Bxf8 {[%emt 0:00:25]} Kxf8 {[%emt 0:00:10]} 10. Bg2 {[%emt 0:00:27]} g6 {[%emt 0:00:49]} 11. O-O {[%emt 0:01:35]} Kg7 {[%emt 0:00:17]} 12. Nbd2 {[%emt 0:01:06]} Nc5 {[%emt 0:00:29]} 13. Nb3 {[%emt 0:03:29]} Na4 {[%emt 0:01:20]} 14. c5 {[%emt 0:01:15]} h5 {[%emt 0:08:32]} 15. h4 {[%emt 0:04:57]} Qe7 {[%emt 0:07:27]} 16. Qc1 {[%emt 0:03:45]} Be6 {[%emt 0:02:41]} 17. Nfd2 {[%emt 0:02:51]} Nc3 {[%emt 0:16:21]} 18. Re1 {[%emt 0:00:18]} c6 {[%emt 0:02:24]} 19. Ne4 {[%emt 0:01:36]} Nxe4 {[%emt 0:01:44]} 20. dxe4 {[%emt 0:01:23]} Nh6 {[%emt 0:00:15]} 21. Qb2 {[%emt 0:02:02]} Ng4 {[%emt 0:05:32]} 22. a4 {[%emt 0:02:03]} Ra7 {[%emt 0:08:05]} 23. Ra3 {[%emt 0:00:06]} Kh7 {[%emt 0:00:12]} 24. Bh3 {[%emt 0:01:39]} g5 {[%emt 0:00:44]} 25. hxg5 {[%emt 0:01:32]} fxg5 {[%emt 0:01:33]} 26. e3 {[%emt 0:07:58]} dxe3 {[%emt 0:01:20]} 27. f3 {[%emt 0:00:12]} Nf2 {[%emt 0:00:13]} 28. Bf1 {[%emt 0:00:03]} Qf6 {[%emt 0:02:00]} 29. Qe2 {[%emt 0:02:24]} h4 {[%emt 0:00:38]} 30. Qxe3 {[%emt 0:08:36]} hxg3 {[%emt 0:00:04]} 31. Nd2 {[%emt 0:00:24]} Kg7 {[%emt 0:01:37]} 32. Bg2 {[%emt 0:00:10]} Qh6 {[%emt 0:01:49]} 33. Kf1 {[%emt 0:02:14]} Nh3 {[%emt 0:02:45]} 34. Bxh3 {[%emt 0:00:10]} Qxh3+ {[%emt 0:00:25]} 35. Ke2 {[%emt 0:00:01]} Kf6 {[%emt 0:00:06]} 36. Kd3 {[%emt 0:02:47]} Rd8+ {[%emt 0:01:51]} 37. Kc2 {[%emt 0:00:21]} Rd4 {[%emt 0:00:06]} 38. a5 {[%emt 0:02:37]} Ra8 {[%emt 0:00:02]} 39. Rd3 {[%emt 0:01:39]} Rad8 {[%emt 0:01:15]} 40. Rxd4 {[%emt 0:00:05]} Rxd4 {[%emt 0:00:00]} 41. Re2 {[%emt 0:00:09]} Qh8 {[%emt 0:00:26]} 42. Rg2 {[%emt 0:00:25]} Qh4 {[%emt 0:00:35]} 43. Nf1 {[%emt 0:00:48]} Bh3 {[%emt 0:00:50]} 44. Qg1 {[%emt 0:06:17]} Bxg2 {[%emt 0:00:05]} 45. Qxg2 {[%emt 0:00:03]} Qf4 {[%emt 0:00:19]} 46. Qh3 {[%emt 0:00:02]} Ke7 {[%emt 0:00:28]} 47. Ne3 {[%emt 0:01:00]} Qxe3 {[%emt 0:00:27]} 48. Qh7+ {[%emt 0:00:06]} Kd8 {[%emt 0:00:05]} 49. Qh8+ {[%emt 0:00:15]} Kd7 {[%emt 0:00:04]} 0-1

[Event "1000 GM Labor Day Super Swiss 2024"]
[Site "San Jose"]
[Date "2024.09.02"]
[Round "6.14"]
[White "Widjaja, Luke"]
[Black "Sathish, Pranav"]
[Result "1/2-1/2"]
[Annotator "TA"]
[ECO "B40"]
[WhiteElo "2056"]
[BlackElo "2337"]
[PlyCount "70"]
[EventDate "2024.08.30"]
[EventType "swiss"]
[EventCountry "USA"]
[SourceTitle "playchess.com"]
[Source "ChessBase"]
[SourceQuality "1"]
[TimeControl "5400+30"]

{[%evp 9,70,5,11,0,0,0,0,0,0,0,0,0,0,0,17,15,0,0,14,0,38,29,75,67,68,75,64,67,67,44,43,24,24,14,21,17,17,15,64,11,18,0,0,0,0,0,0,0,301,310,216,0,1,2,6,2,289,0,0,0,-2,-6,-7]} 1. e4 {[%emt 0:00:02]} c5 {[%emt 0:01:11]} 2. Nf3 {[%emt 0:00:04]} e6 {[%emt 0:00:03]} 3. g3 {[%emt 0:00:21]} Nc6 {[%emt 0:00:04]} 4. Bg2 {[%emt 0:00:02]} Nf6 {[%emt 0:00:06]} 5. Qe2 {[%emt 0:00:01]} e5 {[%emt 0:00:11]} 6. O-O {[%emt 0:00:06]} Be7 {[%emt 0:00:05]} 7. c3 {[%emt 0:00:03]} O-O {[%emt 0:00:07]} 8. Na3 {[%emt 0:00:14][%cal Bb1a3,Ba3c4,Bc4e3,Be3g4][%mdl 32]} Re8 {[%emt 0:00:57]} 9. d3 {[%emt 0:00:15]} d6 {[%emt 0:00:47]} 10. Nc4 {[%emt 0:05:54]} h6 {[%emt 0:01:04]} 11. Ne3 {[%emt 0:00:36]} Bf8 {[%emt 0:00:54]} 12. Nd2 {[%emt 0:10:14]} Rb8 {[%emt 0:10:43]} 13. a4 {[%emt 0:03:43]} b6 {[%emt 0:03:28]} 14. f4 {[%emt 0:05:07]} Bb7 {[%emt 0:01:17]} 15. f5 {[%emt 0:02:37]} Ne7 {[%emt 1:17:03]} (15... Na5 $11) 16. Ng4 {[%emt 0:19:24]} Nc6 {[%emt 0:00:00][%cal Be7c6,Bc6a5,Ba5b3,Bb3c1][%mdl 32]} 17. Nxf6+ {[%emt 0:04:57]} Qxf6 {[%emt 0:00:00]} 18. Nc4 {[%emt 0:00:38][%cal Bd2c4,Bc4e3,Be3g4][%mdl 32]} Na5 $1 {[%emt 0:00:00]} 19. Ne3 {[%emt 0:13:54] Ng4 would now be deadly.} Nb3 {[%emt 0:00:00]} 20. Ng4 {[%emt 0:00:32]} (20. Ra2 {simplifies} Nxc1 21. Rxc1 Qd8 22. h4) 20... Qd8 {[%emt 0:00:00] [#]} 21. f6 $1 {[%emt 0:02:59][%cal Of6g7]} Nxc1 {[%emt 0:00:00]} 22. Raxc1 {[%emt 0:00:31]} g6 $1 {[%emt 0:00:00]} 23. Ne3 $36 {[%emt 0:08:32][%mdl 2048] White has good play.} Bc8 {[%emt 0:00:00]} (23... h5 $11 {feels stronger.}) 24. h4 {[%emt 0:00:44] White is much more active.} (24. g4 $14) 24... h5 $1 $11 {[%emt 0:00:00]} 25. g4 {[%emt 0:02:34]} hxg4 {[%emt 0:00:00]} 26. Nxg4 {[%emt 0:01:35]} Bxg4 {[%emt 0:00:00]} 27. Qxg4 {[%emt 0:00:02]} Bh6 {[%emt 0:00:00] aiming for ...Be3+.} 28. h5 $1 {[%emt 0:02:01]} Kh7 {[%emt 0:00:00][%mdl 8192] Black is weak on the light squares} (28... Re6 $11 29. hxg6 Rxf6 30. gxf7+ Kxf7 31. Rxf6+ Qxf6 32. Qd7+ Kg6 33. Qg4+ Kf7 (33... Qg5 34. Qe6+ Kh7 35. Ra1 $14) 34. Qd7+ Qe7 35. Rf1+ Bf4 36. Qf5+ Kg8) 29. hxg6+ $18 {[%emt 0:01:09]} fxg6 {[%emt 0:00:00] [#]} 30. Qh4 $2 {[%emt 0:00:48]} ({White must play} 30. Rf3 $1 $18) 30... Rh8 $11 {[%emt 0:00:00]} 31. Bh3 {[%emt 0:01:48]} Qe8 {[%emt 0:00:00][%cal Ob8b7] Dodges Be6} 32. Kg2 {[%emt 0:04:52]} Qf7 $2 {[%emt 0:00:00][%mdl 8192] [#]} (32... Rb7 $1 $11 {and Black has nothing to worry.}) 33. d4 $2 {[%emt 0:03:39]} Kg8 $1 {[%emt 0:00:00] The position is equal.} 34. Rcd1 {[%emt 0:00:35] Threatens to win with dxe5.} Bf4 {[%emt 0:00:00]} 35. Qg4 {[%emt 0:00:09] dxc5 is the strong threat. Really sharp!} Qxf6 {[%emt 0:10:00] Weighted Error Value: White=0.30/Black=0.35.  Loses game:     	---       	Black=2      Missed win:     	White=2     	---        Mistake:       	White=1     	Black=2      Inaccurate:     	---       	Black=1      OK:         	White=10    	Black=9      Best:        	White=1     	Black=4      Strong:       	White=1     	Black=4} 1/2-1/2

[Event "1000 GM Labor Day Super Swiss 2024"]
[Site "San Jose"]
[Date "2024.09.02"]
[Round "6.15"]
[White "Guo, Ethan"]
[Black "Garduno Huerta, Joshua Emiliano"]
[Result "1/2-1/2"]
[Annotator "TA"]
[ECO "C50"]
[WhiteElo "2211"]
[BlackElo "2056"]
[PlyCount "50"]
[EventDate "2024.08.30"]
[EventType "swiss"]
[EventCountry "USA"]
[SourceTitle "playchess.com"]
[Source "ChessBase"]
[SourceQuality "1"]
[TimeControl "5400+30"]

{[%evp 12,50,20,11,16,0,20,-7,4,0,0,0,13,7,10,-9,-14,-7,-7,-8,-11,-10,-9,-60,-21,-28,0,-11,-23,-10,-11,-22,-29,-22,-25,-22,-15,-17,0,0,0]} 1. e4 {[%emt 0:03:11]} e5 {[%emt 0:02:43]} 2. Nf3 {[%emt 0:00:02]} Nc6 {[%emt 0:00:15]} 3. Bc4 {[%emt 0:00:06]} Bc5 {[%emt 0:00:14]} 4. d3 {[%emt 0:00:06]} Nf6 {[%emt 0:03:54]} 5. Nc3 {[%emt 0:00:03]} h6 {[%emt 0:00:13]} 6. O-O {[%emt 0:00:19]} a6 {[%emt 0:01:07]} 7. a4 {[%emt 0:00:13]} d6 {[%emt 0:00:42]} 8. Be3 {[%emt 0:00:28]} O-O {[%emt 0:00:07]} 9. h3 {[%emt 0:00:30]} Re8 {[%emt 0:05:27]} 10. Nd5 {[%emt 0:08:02]} Nxd5 {[%emt 0:09:21]} 11. Bxd5 {[%emt 0:00:29]} Ne7 {[%emt 0:09:26]} 12. Bb3 {[%emt 0:00:55] Bxc5 would now be deadly.} Ng6 {[%emt 0:00:36]} 13. d4 {[%emt 0:01:27]} exd4 {[%emt 0:08:09]} 14. Bxd4 {[%emt 0:00:13]} Bxd4 {[%emt 0:00:53]} 15. Qxd4 {[%emt 0:01:26]} Be6 {[%emt 0:04:34]} 16. Bxe6 {[%emt 0:01:40]} Rxe6 {[%emt 0:03:02][%cal Be8e6,Be6d6,Bd6d4][%mdl 32]} 17. g3 {[%emt 0:00:27]} ({White should play} 17. Rfe1 $11) 17... Ne5 {[%emt 0:07:38]} 18. Nxe5 {[%emt 0:08:44]} dxe5 {[%emt 0:01:20]} 19. Qb4 {[%emt 0:00:22][%cal Of1d1]} Rd6 {[%emt 0:17:45]} 20. a5 {[%emt 0:00:32]} Rb8 {[%emt 0:01:04]} 21. Qc3 {[%emt 0:01:19]} Rd4 {[%emt 0:00:12]} 22. Rfe1 {[%emt 0:00:24]} Qd6 {[%emt 0:00:18]} 23. Ra3 {[%emt 0:01:25][%cal Ba1a3,Ba3b3,Bb3c3][%mdl 32]} Qb4 {[%emt 0:08:46] The position is equal.} 24. Rb3 {[%emt 0:02:36]} Qxc3 {[%emt 0:00:07]} 25. Rxc3 {[%emt 0:00:30]} c6 {[%emt 0:00:30] Weighted Error Value: White=0.12 (very precise) /Black=0.07 (flawless) .  Mistake:       	White=1     	---        Inaccurate:     	White=1     	Black=2      OK:         	White=3     	Black=9} 1/2-1/2

[Event "1000 GM Labor Day Super Swiss 2024"]
[Site "San Jose"]
[Date "2024.09.02"]
[Round "6.16"]
[White "Karthi, Jashith"]
[Black "Piasetski, Leon"]
[Result "1/2-1/2"]
[Annotator "TA"]
[ECO "E20"]
[WhiteElo "2066"]
[BlackElo "2167"]
[PlyCount "32"]
[EventDate "2024.08.30"]
[EventType "swiss"]
[EventCountry "USA"]
[SourceTitle "playchess.com"]
[Source "ChessBase"]
[SourceQuality "1"]
[TimeControl "5400+30"]

{[%evp 15,32,25,34,25,27,35,29,28,22,33,22,39,50,38,41,0,62,0,37]} 1. d4 {[%emt 0:00:38]} Nf6 {[%emt 0:04:43]} 2. c4 {[%emt 0:00:13]} e6 {[%emt 0:00:19][%cal Be7e6,Be6e5][%mdl 32]} 3. Nc3 {[%emt 0:00:18]} Bb4 {[%emt 0:00:12]} 4. f3 {[%emt 0:01:05]} d5 {[%emt 0:00:51]} 5. a3 {[%emt 0:00:46]} Be7 {[%emt 0:00:18]} 6. e4 {[%emt 0:00:08]} dxe4 {[%emt 0:00:07]} 7. fxe4 {[%emt 0:00:14]} e5 {[%emt 0:00:06]} 8. d5 {[%emt 0:01:02]} Bc5 {[%emt 0:00:09]} 9. Nf3 {[%emt 0:03:09][%cal Ob2b4]} Bg4 {[%emt 0:00:14]} 10. h3 {[%emt 0:04:51]} Bxf3 {[%emt 0:00:09]} 11. Qxf3 {[%emt 0:00:11] White has an edge.} O-O {[%emt 0:07:30]} 12. Bg5 {[%emt 0:02:47]} Nbd7 {[%emt 0:01:14]} 13. O-O-O {[%emt 0:02:15]} Be7 {[%emt 0:05:54][%cal Of6d5]} 14. Be3 {[%emt 0:06:30]} Bc5 {[%emt 0:06:14]} 15. Bg5 {[%emt 0:00:27]} Be7 {[%emt 0:05:11][%cal Of6d5]} 16. Be3 {[%emt 0:01:50] White is more active.} Bc5 {[%emt 0:02:10] Weighted Error Value: White=0.16 (very precise) /Black=0.02 (flawless) .  OK:         	White=2     	Black=5} 1/2-1/2

[Event "1000 GM Labor Day Super Swiss 2024"]
[Site "San Jose"]
[Date "2024.09.02"]
[Round "6.17"]
[White "Zuluaga Mancilla, Cesar"]
[Black "Gui, Suyuan"]
[Result "0-1"]
[Annotator "TA"]
[ECO "D95"]
[WhiteElo "2166"]
[BlackElo "2033"]
[PlyCount "96"]
[EventDate "2024.08.30"]
[EventType "swiss"]
[EventCountry "USA"]
[SourceTitle "playchess.com"]
[Source "ChessBase"]
[SourceQuality "1"]
[TimeControl "5400+30"]

{[%evp 12,96,29,12,46,45,70,65,70,61,59,53,63,25,59,44,47,35,42,43,43,33,20,21,30,0,0,-20,5,0,7,0,0,7,6,0,24,16,113,0,0,-18,20,0,0,0,24,14,77,78,66,64,118,118,125,96,99,17,11,0,0,-44,-41,-71,-76,-88,-48,-106,-112,-101,-88,-106,-102,-234,-234,-213,-257,-225,-102,-208,-200,-212,-225,-230,-239,-231,-223]} 1. d4 {[%emt 0:00:04]} Nf6 {[%emt 0:01:31]} 2. Nf3 {[%emt 0:00:26]} g6 {[%emt 0:00:07]} 3. c4 {[%emt 0:00:17]} Bg7 {[%emt 0:00:05]} 4. Nc3 {[%emt 0:00:07]} d5 {[%emt 0:00:04]} 5. e3 {[%emt 0:00:56]} O-O {[%emt 0:01:42]} 6. Qb3 {[%emt 0:00:19]} dxc4 {[%emt 0:04:42]} 7. Bxc4 {[%emt 0:00:09]} e6 {[%emt 0:00:28]} 8. O-O {[%emt 0:00:39]} Nc6 {[%emt 0:01:03][%cal Bb8c6,Bc6e7,Be7d5,Bd5c3][%mdl 32]} 9. Bb5 {[%emt 0:01:20]} Ne7 {[%emt 0:02:49] White is slightly better.} 10. Rd1 {[%emt 0:00:20]} Ned5 {[%emt 0:02:52]} 11. Bd2 {[%emt 0:03:46]} Nxc3 {[%emt 0:06:05]} 12. bxc3 {[%emt 0:00:50]} a6 {[%emt 0:02:13]} 13. Be2 {[%emt 0:00:36]} b6 {[%emt 0:00:43]} 14. c4 {[%emt 0:00:17]} Bb7 {[%emt 0:01:03]} 15. Bb4 {[%emt 0:02:06]} Re8 {[%emt 0:01:17]} 16. a4 {[%emt 0:00:22]} Rb8 {[%emt 0:03:20]} 17. Qa2 {[%emt 0:01:51]} a5 {[%emt 0:01:33]} 18. Be1 {[%emt 0:01:38]} Qe7 {[%emt 0:03:19]} 19. Rac1 {[%emt 0:03:48]} Ne4 {[%emt 0:03:15] [#]} 20. c5 $1 {[%emt 0:04:42]} bxc5 {[%emt 0:06:20]} 21. Bxa5 {[%emt 0:01:21]} Ra8 {[%emt 0:02:22]} 22. Be1 {[%emt 0:00:23]} cxd4 {[%emt 0:02:43]} 23. exd4 {[%emt 0:01:40]} Red8 {[%emt 0:06:19]} 24. a5 {[%emt 0:07:13]} Ng5 {[%emt 0:03:02]} (24... h5 $11 {remains equal.}) 25. Qb3 {[%emt 0:08:47]} ({Only move:} 25. Ne5 $16) 25... Bd5 $11 {[%emt 0:03:34]} 26. Qc3 {[%emt 0:02:30]} Rdc8 {[%emt 0:01:43][%cal Oc7c5]} 27. Nxg5 {[%emt 0:01:36]} Qxg5 {[%emt 0:00:15]} 28. Qg3 {[%emt 0:00:07]} Qe7 {[%emt 0:01:18]} 29. Qe3 {[%emt 0:04:39]} c6 {[%emt 0:05:13]} (29... Rcb8 $11 {keeps the balance.}) 30. a6 $16 {[%emt 0:01:23]} Rcb8 {[%emt 0:01:03]} 31. Rb1 {[%emt 0:00:16] Repels Rb3} Bf8 {[%emt 0:04:58]} (31... h5 $14) 32. Qf4 {[%emt 0:08:33]} Qa7 {[%emt 0:02:51]} 33. Bc3 {[%emt 0:06:00]} Bg7 {[%emt 0:03:33]} 34. Qe3 {[%emt 0:06:19]} (34. Bb4 $16 {Bc5 is the strong threat.} Qb6 35. Bf1) 34... Bb3 $11 {[%emt 0:02:28][%cal Bd5b3,Bb3a4,Ba4b5][%mdl 32]} 35. Rdc1 {[%emt 0:06:05][%cal Od4d5]} Ba4 {[%emt 0:00:32]} 36. Ra1 {[%emt 0:00:43]} Bb5 {[%emt 0:00:33]} 37. Bf3 {[%emt 0:10:17]} Qb6 {[%emt 0:02:07]} (37... Bxa6 $2 {perishes.} 38. Bxc6 Rc8 39. Bxa8 Qxa8 40. h4 $18 (40. d5 Bxc3 41. Rxc3 Qxd5 $16)) 38. Qf4 {[%emt 0:06:24]} Rc8 {[%emt 0:01:48]} 39. Rcb1 {[%emt 0:04:31]} ({Better is} 39. h4 $15) 39... Rxa6 $17 {[%emt 0:01:40]} 40. Rxa6 {[%emt 0:00:02]} Qxa6 {[%emt 0:00:20]} 41. Bb4 {[%emt 0:01:02]} Qa2 $40 {[%emt 0:03:22][%mdl 128] Black has strong attack.} 42. Re1 {[%emt 0:00:36] [#]} (42. Rc1 $17 {is a better defense.}) 42... Qc4 $1 $19 {[%emt 0:01:40][%csl LRb4,LRd4]} 43. Bc5 {[%emt 0:03:30] [#]} e5 $1 {[%emt 0:02:13][%mdl 512]} 44. Qg4 {[%emt 0:01:42]} f5 {[%emt 0:00:19]} (44... Ra8 $19 {is more deadly. Threatens to win with ...Qc3.} 45. Qd7 h5 (45... exd4 46. Bxc6 Bxc6 47. Qxc6 $17)) 45. Qg5 {[%emt 0:01:08]} (45. Qg3 $17 {was the only defense.}) 45... exd4 {[%emt 0:00:57] Black is clearly better.} 46. Qe7 {[%emt 0:00:13]} Qf7 {[%emt 0:00:51]} 47. Qd6 {[%emt 0:00:05]} Re8 {[%emt 0:01:37]} 48. Rxe8+ {[%emt 0:01:29]} Qxe8 {[%emt 0:00:05] Weighted Error Value: White=0.26 (precise) /Black=0.17 (very precise) .  Mistake:       	White=5     	Black=4      Inaccurate:     	White=4     	Black=3      OK:         	White=10    	Black=14     Best:        	White=2     	Black=3      Strong:       	---       	Black=1      Brilliant:      	---       	Black=1} 0-1

[Event "1000 GM Labor Day Super Swiss 2024"]
[Site "San Jose"]
[Date "2024.09.02"]
[Round "6.18"]
[White "Tang, Dylan"]
[Black "Yan, Nathan"]
[Result "1-0"]
[Annotator "TA"]
[ECO "C54"]
[WhiteElo "2092"]
[BlackElo "2160"]
[PlyCount "51"]
[EventDate "2024.08.30"]
[EventType "swiss"]
[EventCountry "USA"]
[SourceTitle "playchess.com"]
[Source "ChessBase"]
[SourceQuality "1"]
[TimeControl "5400+30"]

{[%evp 14,51,7,14,32,12,9,11,12,17,24,18,15,20,27,18,6,14,58,54,285,277,273,281,577,563,553,561,567,558,561,548,583,564,622,652,694,691,913,816]} 1. e4 {[%emt 0:03:34]} e5 {[%emt 0:06:07]} 2. Nf3 {[%emt 0:00:10]} Nc6 {[%emt 0:01:03]} 3. Bc4 {[%emt 0:00:10]} Bc5 {[%emt 0:00:09]} 4. c3 {[%emt 0:00:09]} Nf6 {[%emt 0:00:07]} 5. d3 {[%emt 0:00:06]} d6 {[%emt 0:00:30]} 6. O-O {[%emt 0:01:41]} O-O {[%emt 0:00:10]} 7. h3 {[%emt 0:00:12]} h6 {[%emt 0:00:08]} 8. Re1 {[%emt 0:00:04]} Be6 {[%emt 0:02:16]} 9. Nbd2 {[%emt 0:08:24][%cal Bb1d2,Bd2f1,Bf1e3,Be3d5,Bd5c7][%mdl 32]} a5 {[%emt 0:05:05]} 10. Bb5 {[%emt 0:01:11]} Nd7 {[%emt 0:00:49] The position is equal.} 11. Nf1 {[%emt 0:00:12]} d5 {[%emt 0:00:35]} 12. Ne3 {[%emt 0:02:20]} dxe4 {[%emt 0:22:57]} 13. dxe4 {[%emt 0:00:21]} Qe7 {[%emt 0:01:43]} 14. b3 {[%emt 0:22:10]} Rfd8 {[%emt 0:04:54]} 15. Qc2 {[%emt 0:01:15]} Ba7 {[%emt 0:03:57]} 16. Nd5 {[%emt 0:12:58]} Qc5 {[%emt 0:06:37] [#] This move loses the game for Black.} ({Black should try} 16... Qd6 $14) 17. Bxc6 $1 $18 {[%emt 0:00:48]} ({Inferior is} 17. Nxc7 Nb4 18. Qe2 Qxc7 $11) 17... bxc6 {[%emt 0:02:02]} 18. Nxc7 {[%emt 0:00:11]} Bxb3 $2 {[%emt 0:05:03]} (18... Qf8 {was called for.} 19. Nxa8 Rxa8) 19. axb3 {[%emt 0:00:40] White is clearly winning.} Rac8 {[%emt 0:01:22]} 20. Be3 {[%emt 0:00:18]} Qd6 {[%emt 0:01:01]} 21. Bxa7 {[%emt 0:00:08]} Qxc7 {[%emt 0:00:12]} 22. Be3 {[%emt 0:00:08]} c5 {[%emt 0:00:11]} 23. Red1 {[%emt 0:00:15]} c4 {[%emt 0:00:53]} 24. bxc4 {[%emt 0:00:20]} f6 {[%emt 0:02:38]} 25. Rd5 {[%emt 0:01:23]} Qxc4 {[%emt 0:00:07]} 26. Rad1 {[%emt 0:00:18] Weighted Error Value: White=0.03 (flawless) /Black=0.53.  Loses game:     	---       	Black=1      Mistake:       	---       	Black=1      Inaccurate:     	---       	Black=1      OK:         	White=10    	Black=5      Strong:       	White=1     	---} 1-0

[Event "1000 GM Labor Day Super Swiss 2024"]
[Site "San Jose"]
[Date "2024.09.02"]
[Round "6.19"]
[White "Bhatta, Rohit"]
[Black "Gongora Montes, Benjamin"]
[Result "0-1"]
[Annotator "TA"]
[ECO "E08"]
[WhiteElo "2025"]
[BlackElo "2111"]
[PlyCount "86"]
[EventDate "2024.08.30"]
[EventType "swiss"]
[EventCountry "USA"]
[SourceTitle "playchess.com"]
[Source "ChessBase"]
[SourceQuality "1"]
[TimeControl "5400+30"]

{[%evp 20,86,16,0,24,21,52,20,22,33,16,15,35,-59,-33,-118,-40,-33,-17,-27,0,0,0,0,0,-85,-72,-160,-20,-82,-69,-107,-105,-120,-51,-32,8,21,22,6,0,-20,9,0,62,10,10,0,0,0,181,78,65,0,0,-95,-113,-110,-104,-245,-235,-265,-250,-299,-260,-29964,-29966,-29963,-12337]} 1. d4 {[%emt 0:08:22]} d5 {[%emt 0:00:08]} 2. c4 {[%emt 0:00:09]} e6 {[%emt 0:00:06]} 3. Nf3 {[%emt 0:00:21]} Nf6 {[%emt 0:00:08]} 4. g3 {[%emt 0:00:20]} Bb4+ {[%emt 0:00:11]} 5. Bd2 {[%emt 0:00:08]} Be7 {[%emt 0:00:04]} 6. Bg2 {[%emt 0:00:13]} O-O {[%emt 0:00:12]} 7. Qc2 {[%emt 0:00:16]} c6 {[%emt 0:00:06]} 8. O-O {[%emt 0:00:27]} b6 {[%emt 0:00:09]} 9. Bf4 {[%emt 0:00:31]} Bb7 {[%emt 0:00:51]} 10. Rd1 {[%emt 0:00:20]} Nbd7 {[%emt 0:00:14]} 11. Ne5 {[%emt 0:00:31]} Nxe5 {[%emt 0:02:24]} 12. dxe5 {[%emt 0:00:26]} Ne8 {[%emt 0:02:32][%cal Bf6e8,Be8c7,Bc7e6][%mdl 32]} 13. cxd5 {[%emt 0:04:41]} exd5 {[%emt 0:01:49] The position is equal.} 14. Nc3 {[%emt 0:16:52]} Nc7 {[%emt 0:00:28]} 15. Rac1 {[%emt 0:06:15][%cal Oc3d5]} Ne6 {[%emt 0:00:40]} 16. Be4 {[%emt 0:08:24]} (16. Be3 $14) 16... h6 {[%emt 0:02:24]} 17. Bh7+ {[%emt 0:04:29]} Kh8 {[%emt 0:00:10] And now ...Nxf4 would win.} 18. Bf5 {[%emt 0:01:47]} Qe8 {[%emt 0:01:49]} 19. e4 {[%emt 0:08:33][%cal Re4d5]} Nxf4 {[%emt 0:28:23]} 20. gxf4 {[%emt 0:00:12][%cal Re4d5]} Rd8 {[%emt 0:00:11]} 21. exd5 {[%emt 0:03:50]} cxd5 {[%emt 0:00:15][%cal Bc6d5,Bd5d4,Bd4d3][%mdl 32]} 22. Bh3 {[%emt 0:14:57]} (22. Qd3 $11) 22... d4 {[%emt 0:01:35]} 23. Ne4 {[%emt 0:01:56]} (23. Ne2 $142) 23... Qb5 {[%emt 0:03:11]} (23... f6 $17 {[%cal Od4d3] ...d3! would now be deadly.} 24. Bg2 fxe5 25. fxe5 Bh4) 24. Bg2 {[%emt 0:03:18]} (24. Ng3 $11 Bc5 25. Rd3) 24... d3 $17 {[%emt 0:23:25] Black is more active.} 25. Qb3 {[%emt 0:01:48]} Qd7 {[%emt 0:00:14]} 26. Ng3 {[%emt 0:04:54]} Bxg2 {[%emt 0:01:27]} (26... Ba6 $1 $17 27. Be4 Bc5 28. Bxd3 Bxd3) 27. Kxg2 $15 {[%emt 0:02:09]} Qb7+ {[%emt 0:06:35]} (27... Bc5 {keeps more tension.} 28. Rc4 f6 29. f3 fxe5 30. fxe5 Qd5) 28. f3 {[%emt 0:00:02]} Rd4 {[%emt 0:05:55]} 29. Rxd3 {[%emt 0:02:55]} Rxf4 {[%emt 0:00:30]} 30. Rcd1 {[%emt 0:00:53] aiming for Rd7.} Bc5 {[%emt 0:01:39]} 31. Rd7 {[%emt 0:03:20]} (31. Rd8 {looks sharper.} Kg8 32. R1d7 Qc6 33. Qd3) 31... Qa6 {[%emt 0:04:17]} (31... Qc6 $11) 32. R1d2 {[%emt 0:00:35]} (32. a3 $14) 32... Qc8 $11 {[%emt 0:03:49]} 33. Qd5 {[%emt 0:01:03][%cal Og3e4]} a5 {[%emt 0:00:33]} 34. a3 {[%emt 0:01:24]} Qa6 $2 {[%emt 0:01:23] [#]} (34... Qe8 $11) 35. Ne4 {[%emt 0:00:39]} (35. Ne2 $1 $18 {[%cal Re2f4]} Rf5 36. Qe4 Rg5+ 37. Ng3) 35... Rf5 {[%emt 0:10:13]} 36. Nxc5 {[%emt 0:00:44]} (36. h3 $14) 36... bxc5 {[%emt 0:00:00]} 37. Qxc5 {[%emt 0:00:22]} (37. Rd6 $11 {keeps the balance.} Rg5+ 38. Kf2) 37... Qg6+ $17 {[%emt 0:00:00]} 38. Kf2 {[%emt 0:00:30]} Rg8 {[%emt 0:00:00] Threatens to win with ...Qh5.} 39. Rd8 {[%emt 0:00:29] [#] Now White is beyond hope.} (39. Qc3 $17) 39... Qh5 $1 $40 {[%emt 0:00:00][%csl LRe5,LRf3,LRh2][%mdl 128] Black has strong attack.} 40. Rxg8+ {[%emt 0:00:38]} Kxg8 {[%emt 0:00:00]} 41. Qc8+ {[%emt 0:00:33]} Kh7 {[%emt 0:00:00]} 42. Rd3 {[%emt 0:00:36]} (42. Ke1 $19) 42... Qxh2+ {[%emt 0:00:00]} 43. Kf1 {[%emt 0:00:29]} Rxe5 {[%emt 0:04:00] Weighted Error Value: White=0.52/Black=0.27 (precise) .  Loses game:     	---       	Black=1      Mistake:       	White=10    	Black=3      Inaccurate:     	White=2     	Black=6      OK:         	White=8     	Black=8      Best:        	White=3     	Black=2      Strong:       	---       	Black=1} 0-1